fUSD/lending_fUSD_20260622
["ID","MTS","AMOUNT","RATE_DAILY","PERIOD"]
[426016859,1782118252000,-500.0,0.00027397,2]
[426016867,1782118252000,-601.98514377,0.00027397,2]
[426016864,1782118252000,-500.0,0.00027397,2]
[426016861,1782118252000,-500.0,0.00027397,2]
[426016866,1782118252000,-897.75,0.00027397,2]
[426016869,1782118252000,-500.0,0.00027397,2]
[426016862,1782118252000,-500.0,0.00027397,2]
[426016860,1782118252000,-4736.1,0.00027397,2]
[426016863,1782118252000,-500.0,0.00027397,2]
[426016838,1782118252000,-500.0,0.00027397,2]
[426016845,1782118252000,-500.0,0.00027397,2]
[426016868,1782118252000,-500.0,0.00027397,2]
[426016839,1782118252000,-500.0,0.00027397,2]
[426016840,1782118252000,-500.0,0.00027397,2]
[426016817,1782118252000,-500.0,0.00027397,2]
[426016823,1782118252000,-500.0,0.00027397,2]
[426016816,1782118252000,-500.0,0.00027397,2]
[426016815,1782118252000,-500.0,0.00027397,2]
[426016813,1782118252000,-500.0,0.00027397,2]
[426016818,1782118252000,-5391.54,0.00027397,2]
[426016819,1782118252000,-536.97,0.00027397,2]
[426016865,1782118252000,-500.0,0.00027397,2]
[426016822,1782118252000,-500.0,0.00027397,2]
[426016821,1782118252000,-500.0,0.00027397,2]
[426016820,1782118252000,-500.0,0.00027397,2]
[426016825,1782118252000,-500.0,0.00027397,2]
[426016812,1782118252000,-500.0,0.00027397,2]
[426016826,1782118252000,-500.0,0.00027397,2]
[426016824,1782118252000,-500.0,0.00027397,2]
[426016841,1782118252000,-500.0,0.00027397,2]
[426016832,1782118252000,-2575.98,0.00027397,2]
[426016833,1782118252000,-500.0,0.00027397,2]
[426016834,1782118252000,-500.0,0.00027397,2]
[426016836,1782118252000,-225.92307086,0.00027397,2]
[426016830,1782118252000,-4838.88,0.00027397,2]
[426016835,1782118252000,-500.45583438,0.00027397,2]
[426016831,1782118252000,-500.0,0.00027397,2]
[426016828,1782118252000,-500.0,0.00027397,2]
[426016844,1782118252000,-515.22844691,0.00027397,2]
[426016829,1782118252000,-500.0,0.00027397,2]
[426016827,1782118252000,-500.0,0.00027397,2]
[426016908,1782118253000,-7830.66,0.00027397,2]
[426016897,1782118253000,-500.0,0.00027397,2]
[426016898,1782118253000,-500.0,0.00027397,2]
[426016901,1782118253000,-500.0,0.00027397,2]
[426016900,1782118253000,-838.97,0.00027397,2]
[426016907,1782118253000,-506.89301851,0.00027397,2]
[426016903,1782118253000,-1083.39,0.00027397,2]
[426016904,1782118253000,-501.58,0.00027397,2]
[426016906,1782118253000,-500.0,0.00027397,2]
[426016899,1782118253000,-500.0,0.00027397,2]
[426016918,1782118253000,-592.34,0.00027397,2]
[426016905,1782118253000,-500.0,0.00027397,2]
[426016909,1782118253000,-795.59,0.00027397,2]
[426016911,1782118253000,-500.0,0.00027397,2]
[426016913,1782118253000,-5236.5,0.00027397,2]
[426016890,1782118253000,-8420.27,0.00027397,2]
[426016910,1782118253000,-500.0,0.00027397,2]
[426016920,1782118253000,-797.6,0.00027397,2]
[426016915,1782118253000,-500.0,0.00027397,2]
[426016912,1782118253000,-501.09338155,0.00027397,2]
[426016916,1782118253000,-500.0,0.00027397,2]
[426016914,1782118253000,-538.18,0.00027397,2]
[426016902,1782118253000,-500.0,0.00027397,2]
[426016896,1782118253000,-500.0,0.00027397,2]
[426016894,1782118253000,-500.0,0.00027397,2]
[426016887,1782118253000,-500.0,0.00027397,2]
[426016917,1782118253000,-500.0,0.00027397,2]
[426016870,1782118253000,-500.0,0.00027397,2]
[426016872,1782118253000,-500.0,0.00027397,2]
[426016883,1782118253000,-500.0,0.00027397,2]
[426016884,1782118253000,-500.0,0.00027397,2]
[426016882,1782118253000,-4048.28,0.00027397,2]
[426016873,1782118253000,-4874.94,0.00027397,2]
[426016881,1782118253000,-500.0,0.00027397,2]
[426016877,1782118253000,-4216.49,0.00027397,2]
[426016875,1782118253000,-500.0,0.00027397,2]
[426016888,1782118253000,-500.0,0.00027397,2]
[426016879,1782118253000,-1335.55,0.00027397,2]
[426016880,1782118253000,-500.0,0.00027397,2]
[426016878,1782118253000,-748.95,0.00027397,2]
[426016876,1782118253000,-500.0,0.00027397,2]
[426016889,1782118253000,-5655.05,0.00027397,2]
[426016885,1782118253000,-500.0,0.00027397,2]
[426016893,1782118253000,-500.0,0.00027397,2]
[426016892,1782118253000,-500.0,0.00027397,2]
[426016886,1782118253000,-500.0,0.00027397,2]
[426016891,1782118253000,-500.0,0.00027397,2]
[426016895,1782118253000,-500.0,0.00027397,2]
[426016874,1782118253000,-500.0,0.00027397,2]
[426016871,1782118253000,-500.0,0.00027397,2]
[426016921,1782118253000,-636.06,0.00027397,2]
[426016923,1782118253000,-500.0,0.00027397,2]
[426016951,1782118253000,-790.5,0.00027397,2]
[426016962,1782118253000,-503.07549493,0.00027397,2]
[426016961,1782118253000,-500.0,0.00027397,2]
[426016950,1782118253000,-1333.85,0.00027397,2]
[426016952,1782118253000,-535.38,0.00027397,2]
[426016953,1782118253000,-178.6614938,0.00027397,2]
[426016954,1782118253000,-509.20333393,0.00027397,2]
[426016960,1782118253000,-500.0,0.00027397,2]
[426016956,1782118253000,-500.0,0.00027397,2]
[426016955,1782118253000,-500.0,0.00027397,2]
[426016947,1782118253000,-500.0,0.00027397,2]
[426016959,1782118253000,-631.36,0.00027397,2]
[426016963,1782118253000,-151.0,0.00027397,2]
[426016965,1782118253000,-500.0,0.00027397,2]
[426016969,1782118253000,-590.3,0.00027397,2]
[426016971,1782118253000,-150.0,0.00027397,2]
[426016964,1782118253000,-151.0,0.00027397,2]
[426016968,1782118253000,-150.0,0.00027397,2]
[426016970,1782118253000,-500.0,0.00027397,2]
[426016966,1782118253000,-500.0,0.00027397,2]
[426016967,1782118253000,-500.0,0.00027397,2]
[426016919,1782118253000,-510.81816178,0.00027397,2]
[426016958,1782118253000,-9932.49,0.00027397,2]
[426016944,1782118253000,-500.0,0.00027397,2]
[426016957,1782118253000,-500.0,0.00027397,2]
[426016946,1782118253000,-500.0,0.00027397,2]
[426016922,1782118253000,-4057.12,0.00027397,2]
[426016948,1782118253000,-500.0,0.00027397,2]
[426016925,1782118253000,-4676.3,0.00027397,2]
[426016924,1782118253000,-500.0,0.00027397,2]
[426016927,1782118253000,-670.29,0.00027397,2]
[426016926,1782118253000,-500.0,0.00027397,2]
[426016929,1782118253000,-500.0,0.00027397,2]
[426016933,1782118253000,-1063.66,0.00027397,2]
[426016930,1782118253000,-500.0,0.00027397,2]
[426016932,1782118253000,-500.0,0.00027397,2]
[426016935,1782118253000,-500.0,0.00027397,2]
[426016928,1782118253000,-500.0,0.00027397,2]
[426016931,1782118253000,-8237.49,0.00027397,2]
[426016936,1782118253000,-500.0,0.00027397,2]
[426016943,1782118253000,-1346.59,0.00027397,2]
[426016945,1782118253000,-500.0,0.00027397,2]
[426016938,1782118253000,-500.0,0.00027397,2]
[426016942,1782118253000,-500.0,0.00027397,2]
[426016939,1782118253000,-500.0,0.00027397,2]
[426016941,1782118253000,-500.0,0.00027397,2]
[426016940,1782118253000,-500.0,0.00027397,2]
[426016937,1782118253000,-500.0,0.00027397,2]
[426016934,1782118253000,-500.0,0.00027397,2]
[426016949,1782118253000,-500.0,0.00027397,2]
[426017012,1782118254000,-500.0,0.00027397,2]
[426017003,1782118254000,-341.8187288,0.00027397,2]
[426017001,1782118254000,-500.0,0.00027397,2]
[426017007,1782118254000,-158.843375,0.00027397,2]
[426017006,1782118254000,-500.0,0.00027397,2]
[426017005,1782118254000,-151.0,0.00027397,2]
[426017004,1782118254000,-500.0,0.00027397,2]
[426017008,1782118254000,-150.0,0.00027397,2]
[426017009,1782118254000,-500.0,0.00027397,2]
[426017020,1782118254000,-500.0,0.00027397,2]
[426017017,1782118254000,-500.0,0.00027397,2]
[426017013,1782118254000,-583.98,0.00027397,2]
[426017021,1782118254000,-1119.42,0.00027397,2]
[426017011,1782118254000,-6491.92,0.00027397,2]
[426017010,1782118254000,-508.84245081,0.00027397,2]
[426017016,1782118254000,-814.96,0.00027397,2]
[426017019,1782118254000,-500.0,0.00027397,2]
[426017018,1782118254000,-500.0,0.00027397,2]
[426017022,1782118254000,-500.0,0.00027397,2]
[426017032,1782118254000,-745.56,0.00027397,2]
[426017023,1782118254000,-500.0,0.00027397,2]
[426017025,1782118254000,-202.18530104,0.00027397,2]
[426017024,1782118254000,-500.0,0.00027397,2]
[426017027,1782118254000,-1455.69,0.00027397,2]
[426017002,1782118254000,-511.35736369,0.00027397,2]
[426017015,1782118254000,-500.0,0.00027397,2]
[426017000,1782118254000,-500.0,0.00027397,2]
[426016975,1782118254000,-500.0,0.00027397,2]
[426016999,1782118254000,-500.0,0.00027397,2]
[426017029,1782118254000,-500.0,0.00027397,2]
[426016973,1782118254000,-263.84252662,0.00027397,2]
[426016972,1782118254000,-150.0,0.00027397,2]
[426016977,1782118254000,-500.0,0.00027397,2]
[426016976,1782118254000,-500.0,0.00027397,2]
[426016983,1782118254000,-500.0,0.00027397,2]
[426016974,1782118254000,-500.0,0.00027397,2]
[426016985,1782118254000,-500.0,0.00027397,2]
[426016984,1782118254000,-500.0,0.00027397,2]
[426016978,1782118254000,-500.0,0.00027397,2]
[426016979,1782118254000,-500.0,0.00027397,2]
[426016980,1782118254000,-500.0,0.00027397,2]
[426016998,1782118254000,-500.0,0.00027397,2]
[426016981,1782118254000,-500.0,0.00027397,2]
[426016986,1782118254000,-500.0,0.00027397,2]
[426016988,1782118254000,-500.0,0.00027397,2]
[426016989,1782118254000,-500.0,0.00027397,2]
[426016993,1782118254000,-557.71,0.00027397,2]
[426016992,1782118254000,-500.0,0.00027397,2]
[426016997,1782118254000,-500.0,0.00027397,2]
[426016994,1782118254000,-500.0,0.00027397,2]
[426016987,1782118254000,-500.0,0.00027397,2]
[426016995,1782118254000,-534.9,0.00027397,2]
[426016990,1782118254000,-500.0,0.00027397,2]
[426016991,1782118254000,-500.0,0.00027397,2]
[426016996,1782118254000,-3434.95,0.00027397,2]
[426016982,1782118254000,-500.0,0.00027397,2]
[426017026,1782118254000,-500.0,0.00027397,2]
[426017014,1782118254000,-500.0,0.00027397,2]
[426017030,1782118254000,-717.68,0.00027397,2]
[426017059,1782118254000,-500.0,0.00027397,2]
[426017061,1782118254000,-300.0,0.00027397,2]
[426017063,1782118254000,-500.0,0.00027397,2]
[426017062,1782118254000,-500.0,0.00027397,2]
[426017065,1782118254000,-531.94103878,0.00027397,2]
[426017064,1782118254000,-500.0,0.00027397,2]
[426017079,1782118254000,-873.0,0.00027397,2]
[426017068,1782118254000,-517.78254028,0.00027397,2]
[426017078,1782118254000,-2524.57,0.00027397,2]
[426017067,1782118254000,-504.17500527,0.00027397,2]
[426017071,1782118254000,-500.0,0.00027397,2]
[426017070,1782118254000,-607.75668312,0.00027397,2]
[426017066,1782118254000,-1214.24,0.00027397,2]
[426017072,1782118254000,-500.0,0.00027397,2]
[426017073,1782118254000,-500.0,0.00027397,2]
[426017074,1782118254000,-151.0,0.00027397,2]
[426017076,1782118254000,-554.57,0.00027397,2]
[426017075,1782118254000,-150.0,0.00027397,2]
[426017083,1782118254000,-798.53,0.00027397,2]
[426017080,1782118254000,-500.0,0.00027397,2]
[426017082,1782118254000,-500.0,0.00027397,2]
[426017081,1782118254000,-151.0,0.00027397,2]
[426017084,1782118254000,-500.0,0.00027397,2]
[426017086,1782118254000,-500.0,0.00027397,2]
[426017087,1782118254000,-500.0,0.00027397,2]
[426017028,1782118254000,-500.0,0.00027397,2]
[426017077,1782118254000,-151.0,0.00027397,2]
[426017058,1782118254000,-511.9732047,0.00027397,2]
[426017069,1782118254000,-500.0,0.00027397,2]
[426017060,1782118254000,-500.0,0.00027397,2]
[426017056,1782118254000,-844.33,0.00027397,2]
[426017031,1782118254000,-10088.44,0.00027397,2]
[426017033,1782118254000,-500.0,0.00027397,2]
[426017044,1782118254000,-500.0,0.00027397,2]
[426017038,1782118254000,-500.0,0.00027397,2]
[426017035,1782118254000,-500.0,0.00027397,2]
[426017040,1782118254000,-660.72,0.00027397,2]
[426017043,1782118254000,-500.0,0.00027397,2]
[426017036,1782118254000,-500.0,0.00027397,2]
[426017037,1782118254000,-1051.83,0.00027397,2]
[426017034,1782118254000,-1462.67,0.00027397,2]
[426017042,1782118254000,-500.0,0.00027397,2]
[426017039,1782118254000,-500.0,0.00027397,2]
[426017041,1782118254000,-500.0,0.00027397,2]
[426017050,1782118254000,-500.0,0.00027397,2]
[426017057,1782118254000,-500.0,0.00027397,2]
[426017046,1782118254000,-2610.22,0.00027397,2]
[426017051,1782118254000,-500.0,0.00027397,2]
[426017054,1782118254000,-722.61,0.00027397,2]
[426017055,1782118254000,-500.0,0.00027397,2]
[426017053,1782118254000,-4524.83,0.00027397,2]
[426017049,1782118254000,-500.0,0.00027397,2]
[426017047,1782118254000,-500.0,0.00027397,2]
[426017048,1782118254000,-500.0,0.00027397,2]
[426017045,1782118254000,-506.43291233,0.00027397,2]
[426017085,1782118254000,-151.0,0.00027397,2]
[426017052,1782118254000,-500.0,0.00027397,2]
[426017124,1782118255000,-500.0,0.00027397,2]
[426017129,1782118255000,-500.0,0.00027397,115]
[426017131,1782118255000,-265.244739,0.00027397,2]
[426017126,1782118255000,-8333.7,0.00027397,2]
[426017120,1782118255000,-500.0,0.00027397,2]
[426017119,1782118255000,-500.0,0.00027397,2]
[426017123,1782118255000,-501.64541191,0.00027397,2]
[426017121,1782118255000,-500.0,0.00027397,2]
[426017127,1782118255000,-1500.0,0.00027397,2]
[426017125,1782118255000,-500.0,0.00027397,2]
[426017130,1782118255000,-601.0212907,0.00027397,2]
[426017122,1782118255000,-662.03,0.00027397,2]
[426017140,1782118255000,-160.177583,0.00027397,2]
[426017145,1782118255000,-151.0,0.00027397,2]
[426017134,1782118255000,-288.243701,0.00027397,2]
[426017138,1782118255000,-158.368512,0.00027397,2]
[426017135,1782118255000,-267.471092,0.00027397,2]
[426017136,1782118255000,-249.568582,0.00027397,2]
[426017139,1782118255000,-157.918335,0.00027397,2]
[426017133,1782118255000,-154.595642,0.00027397,2]
[426017137,1782118255000,-151.0,0.00027397,2]
[426017152,1782118255000,-153.101073,0.00027397,2]
[426017143,1782118255000,-151.0,0.00027397,2]
[426017144,1782118255000,-151.0,0.00027397,2]
[426017153,1782118255000,-300.0,0.00027397,2]
[426017142,1782118255000,-200.0,0.00027397,2]
[426017117,1782118255000,-316.41658264,0.00027397,2]
[426017132,1782118255000,-195.164925,0.00027397,2]
[426017128,1782118255000,-500.0,0.00027397,115]
[426017088,1782118255000,-500.0,0.00027397,2]
[426017111,1782118255000,-500.0,0.00027397,2]
[426017091,1782118255000,-500.0,0.00027397,2]
[426017141,1782118255000,-151.0,0.00027397,2]
[426017090,1782118255000,-500.0,0.00027397,2]
[426017089,1782118255000,-500.0,0.00027397,2]
[426017103,1782118255000,-500.0,0.00027397,2]
[426017093,1782118255000,-680.19,0.00027397,2]
[426017092,1782118255000,-728.61,0.00027397,2]
[426017094,1782118255000,-157.911035,0.00027397,2]
[426017095,1782118255000,-500.0,0.00027397,2]
[426017096,1782118255000,-500.0,0.00027397,2]
[426017102,1782118255000,-500.0,0.00027397,2]
[426017097,1782118255000,-901.57,0.00027397,2]
[426017098,1782118255000,-500.0,0.00027397,2]
[426017118,1782118255000,-594.11,0.00027397,2]
[426017100,1782118255000,-500.0,0.00027397,2]
[426017101,1782118255000,-1047.27,0.00027397,2]
[426017104,1782118255000,-500.0,0.00027397,2]
[426017105,1782118255000,-500.0,0.00027397,2]
[426017106,1782118255000,-500.0,0.00027397,2]
[426017107,1782118255000,-643.36,0.00027397,2]
[426017109,1782118255000,-500.0,0.00027397,2]
[426017114,1782118255000,-834.63,0.00027397,2]
[426017115,1782118255000,-261.87327095,0.00027397,2]
[426017116,1782118255000,-500.0,0.00027397,2]
[426017113,1782118255000,-11954.4,0.00027397,2]
[426017108,1782118255000,-829.43,0.00027397,2]
[426017110,1782118255000,-500.0,0.00027397,2]
[426017112,1782118255000,-500.0,0.00027397,2]
[426017099,1782118255000,-10334.76,0.00027397,2]
[426017151,1782118255000,-151.0,0.00027397,2]
[426017146,1782118255000,-151.0,0.00027397,2]
[426017210,1782118255000,-151.0,0.00027397,2]
[426017183,1782118255000,-151.0,0.00027397,2]
[426017179,1782118255000,-151.0,0.00027397,2]
[426017182,1782118255000,-157.508766,0.00027397,2]
[426017188,1782118255000,-151.0,0.00027397,2]
[426017190,1782118255000,-151.0,0.00027397,2]
[426017189,1782118255000,-157.694946,0.00027397,2]
[426017180,1782118255000,-151.0,0.00027397,2]
[426017187,1782118255000,-505.48,0.00027397,2]
[426017192,1782118255000,-151.0,0.00027397,2]
[426017196,1782118255000,-151.0,0.00027397,2]
[426017203,1782118255000,-151.655943,0.00027397,2]
[426017191,1782118255000,-151.0,0.00027397,2]
[426017201,1782118255000,-155.361049,0.00027397,2]
[426017198,1782118255000,-151.0,0.00027397,2]
[426017194,1782118255000,-153.894019,0.00027397,2]
[426017193,1782118255000,-159.998939,0.00027397,2]
[426017204,1782118255000,-155.46754,0.00027397,2]
[426017200,1782118255000,-151.0,0.00027397,2]
[426017199,1782118255000,-151.0,0.00027397,2]
[426017195,1782118255000,-151.0,0.00027397,2]
[426017197,1782118255000,-151.0,0.00027397,2]
[426017205,1782118255000,-151.0,0.00027397,2]
[426017207,1782118255000,-151.0,0.00027397,2]
[426017150,1782118255000,-151.0,0.00027397,2]
[426017206,1782118255000,-151.0,0.00027397,2]
[426017209,1782118255000,-151.0,0.00027397,2]
[426017208,1782118255000,-151.0,0.00027397,2]
[426017184,1782118255000,-194.830531,0.00027397,2]
[426017181,1782118255000,-244.25553991,0.00027397,2]
[426017202,1782118255000,-158.644007,0.00027397,2]
[426017186,1782118255000,-177.737963,0.00027397,2]
[426017147,1782118255000,-298.117611,0.00027397,2]
[426017148,1782118255000,-151.0,0.00027397,2]
[426017185,1782118255000,-151.0,0.00027397,2]
[426017154,1782118255000,-151.0,0.00027397,2]
[426017157,1782118255000,-165.240748,0.00027397,2]
[426017156,1782118255000,-164.431502,0.00027397,2]
[426017159,1782118255000,-267.43957,0.00027397,2]
[426017160,1782118255000,-165.240748,0.00027397,2]
[426017164,1782118255000,-165.240748,0.00027397,2]
[426017155,1782118255000,-165.240748,0.00027397,2]
[426017158,1782118255000,-151.0,0.00027397,2]
[426017162,1782118255000,-151.0,0.00027397,2]
[426017163,1782118255000,-154.628383,0.00027397,2]
[426017161,1782118255000,-165.240748,0.00027397,2]
[426017149,1782118255000,-173.470216,0.00027397,2]
[426017166,1782118255000,-151.0,0.00027397,2]
[426017175,1782118255000,-151.0,0.00027397,2]
[426017165,1782118255000,-165.240748,0.00027397,2]
[426017177,1782118255000,-155.796264,0.00027397,2]
[426017174,1782118255000,-151.0,0.00027397,2]
[426017172,1782118255000,-206.108906,0.00027397,2]
[426017171,1782118255000,-151.0,0.00027397,2]
[426017176,1782118255000,-151.0,0.00027397,2]
[426017169,1782118255000,-165.240748,0.00027397,2]
[426017170,1782118255000,-151.0,0.00027397,2]
[426017167,1782118255000,-151.0,0.00027397,2]
[426017178,1782118255000,-151.0,0.00027397,2]
[426017168,1782118255000,-165.240748,0.00027397,2]
[426017173,1782118255000,-250.47172,0.00027397,2]
[426017248,1782118256000,-151.0,0.00027397,2]
[426017249,1782118256000,-151.0,0.00027397,2]
[426017237,1782118256000,-1170.064527,0.00027397,2]
[426017247,1782118256000,-151.0,0.00027397,2]
[426017240,1782118256000,-151.0,0.00027397,2]
[426017246,1782118256000,-151.0,0.00027397,2]
[426017245,1782118256000,-151.0,0.00027397,2]
[426017242,1782118256000,-153.728796,0.00027397,2]
[426017243,1782118256000,-151.0,0.00027397,2]
[426017259,1782118256000,-151.0,0.00027397,2]
[426017244,1782118256000,-151.0,0.00027397,2]
[426017253,1782118256000,-151.0,0.00027397,2]
[426017252,1782118256000,-151.0,0.00027397,2]
[426017256,1782118256000,-151.0,0.00027397,2]
[426017251,1782118256000,-151.0,0.00027397,2]
[426017257,1782118256000,-151.0,0.00027397,2]
[426017255,1782118256000,-151.0,0.00027397,2]
[426017254,1782118256000,-179.254624,0.00027397,2]
[426017258,1782118256000,-151.0,0.00027397,2]
[426017260,1782118256000,-151.0,0.00027397,2]
[426017261,1782118256000,-155.554637,0.00027397,2]
[426017266,1782118256000,-214.351377,0.00027397,2]
[426017269,1782118256000,-151.0,0.00027397,2]
[426017238,1782118256000,-1170.064527,0.00027397,2]
[426017250,1782118256000,-151.0,0.00027397,2]
[426017241,1782118256000,-248.709433,0.00027397,2]
[426017267,1782118256000,-187.371859,0.00027397,2]
[426017236,1782118256000,-1170.064527,0.00027397,2]
[426017212,1782118256000,-151.0,0.00027397,2]
[426017211,1782118256000,-249.569941,0.00027397,2]
[426017213,1782118256000,-154.917007,0.00027397,2]
[426017216,1782118256000,-151.0,0.00027397,2]
[426017220,1782118256000,-151.0,0.00027397,2]
[426017223,1782118256000,-1170.064527,0.00027397,2]
[426017221,1782118256000,-157.479459,0.00027397,2]
[426017222,1782118256000,-1170.064527,0.00027397,2]
[426017214,1782118256000,-151.0,0.00027397,2]
[426017218,1782118256000,-202.50225,0.00027397,2]
[426017215,1782118256000,-157.706786,0.00027397,2]
[426017217,1782118256000,-159.101933,0.00027397,2]
[426017219,1782118256000,-151.0,0.00027397,2]
[426017225,1782118256000,-1170.064527,0.00027397,2]
[426017235,1782118256000,-1170.064527,0.00027397,2]
[426017228,1782118256000,-151.0,0.00027397,2]
[426017224,1782118256000,-1170.064527,0.00027397,2]
[426017232,1782118256000,-159.451735,0.00027397,2]
[426017231,1782118256000,-151.0,0.00027397,2]
[426017227,1782118256000,-1170.064527,0.00027397,2]
[426017233,1782118256000,-1170.064527,0.00027397,2]
[426017229,1782118256000,-151.0,0.00027397,2]
[426017226,1782118256000,-1170.064527,0.00027397,2]
[426017230,1782118256000,-151.0,0.00027397,2]
[426017234,1782118256000,-1170.064527,0.00027397,2]
[426017239,1782118256000,-151.0,0.00027397,2]
[426017264,1782118256000,-151.0,0.00027397,2]
[426017279,1782118256000,-151.0,0.00027397,2]
[426017262,1782118256000,-151.0,0.00027397,2]
[426017297,1782118256000,-318.223856,0.00027397,2]
[426017302,1782118256000,-191.700579,0.00027397,2]
[426017305,1782118256000,-151.0,0.00027397,2]
[426017301,1782118256000,-151.0,0.00027397,2]
[426017300,1782118256000,-191.700579,0.00027397,2]
[426017303,1782118256000,-151.0,0.00027397,2]
[426017304,1782118256000,-191.700579,0.00027397,2]
[426017298,1782118256000,-159.104499,0.00027397,2]
[426017307,1782118256000,-151.0,0.00027397,2]
[426017306,1782118256000,-159.104499,0.00027397,2]
[426017317,1782118256000,-151.0,0.00027397,2]
[426017308,1782118256000,-159.104499,0.00027397,2]
[426017310,1782118256000,-151.0,0.00027397,2]
[426017309,1782118256000,-318.223856,0.00027397,2]
[426017312,1782118256000,-318.223856,0.00027397,2]
[426017313,1782118256000,-151.0,0.00027397,2]
[426017316,1782118256000,-318.223856,0.00027397,2]
[426017314,1782118256000,-191.700579,0.00027397,2]
[426017315,1782118256000,-151.0,0.00027397,2]
[426017311,1782118256000,-159.104499,0.00027397,2]
[426017318,1782118256000,-191.700579,0.00027397,2]
[426017263,1782118256000,-151.0,0.00027397,2]
[426017319,1782118256000,-151.0,0.00027397,2]
[426017322,1782118256000,-151.0,0.00027397,2]
[426017321,1782118256000,-151.0,0.00027397,2]
[426017296,1782118256000,-159.104499,0.00027397,2]
[426017299,1782118256000,-159.104499,0.00027397,2]
[426017320,1782118256000,-191.700579,0.00027397,2]
[426017295,1782118256000,-151.0,0.00027397,2]
[426017294,1782118256000,-191.700579,0.00027397,2]
[426017265,1782118256000,-151.0,0.00027397,2]
[426017270,1782118256000,-151.0,0.00027397,2]
[426017272,1782118256000,-151.0,0.00027397,2]
[426017271,1782118256000,-151.0,0.00027397,2]
[426017273,1782118256000,-151.0,0.00027397,2]
[426017275,1782118256000,-159.104499,0.00027397,2]
[426017274,1782118256000,-151.0,0.00027397,2]
[426017276,1782118256000,-234.290967,0.00027397,2]
[426017280,1782118256000,-318.223856,0.00027397,2]
[426017278,1782118256000,-159.104499,0.00027397,2]
[426017277,1782118256000,-159.104499,0.00027397,2]
[426017268,1782118256000,-151.0,0.00027397,2]
[426017292,1782118256000,-151.0,0.00027397,2]
[426017282,1782118256000,-318.223856,0.00027397,2]
[426017289,1782118256000,-151.0,0.00027397,2]
[426017290,1782118256000,-318.223856,0.00027397,2]
[426017287,1782118256000,-191.700579,0.00027397,2]
[426017286,1782118256000,-159.104499,0.00027397,2]
[426017288,1782118256000,-159.104499,0.00027397,2]
[426017285,1782118256000,-318.223856,0.00027397,2]
[426017283,1782118256000,-151.0,0.00027397,2]
[426017284,1782118256000,-159.104499,0.00027397,2]
[426017281,1782118256000,-151.0,0.00027397,2]
[426017291,1782118256000,-191.700579,0.00027397,2]
[426017293,1782118256000,-318.223856,0.00027397,2]
[426017348,1782118257000,-151.0,0.00027397,2]
[426017359,1782118257000,-259.94208,0.00027397,2]
[426017346,1782118257000,-151.0,0.00027397,2]
[426017352,1782118257000,-151.0,0.00027397,2]
[426017351,1782118257000,-151.0,0.00027397,2]
[426017349,1782118257000,-151.0,0.00027397,2]